[Event "*** Titled Tuesday Blitz"]
[Site "Chess.com"]
[Date "2020.05.19"]
[Round "9"]
[White "ErikBlomqvist"]
[Black "Storchnoi"]
[Result "0-1"]
[WhiteElo "2238"]
[BlackElo "1977"]
[TimeControl "180+1"]
[EndTime "13:46:36 PDT"]
[Termination "Storchnoi won on time"]

1. e4 {[%clk 0:03:00.9]} 1... c5 {[%clk 0:02:59.6]} 2. Nf3 {[%clk 0:02:55.3]}
2... Nc6 {[%clk 0:02:59.5]} 3. Bb5 {[%clk 0:02:52.3]} 3... g6 {[%clk 0:02:58.9]}
4. O-O {[%clk 0:02:49.9]} 4... Bg7 {[%clk 0:02:59.1]} 5. Nc3 {[%clk 0:02:49.9]}
5... Nf6 {[%clk 0:02:59.4]} 6. e5 {[%clk 0:02:47.8]} 6... Ng4 {[%clk 0:02:59.6]}
7. Bxc6 {[%clk 0:02:48.1]} 7... dxc6 {[%clk 0:02:59.2]} 8. Re1 {[%clk
0:02:44.6]} 8... O-O {[%clk 0:02:47]} 9. d3 {[%clk 0:02:43.1]} 9... Nh6 {[%clk
0:02:45.1]} 10. h3 {[%clk 0:02:40.4]} 10... Nf5 {[%clk 0:02:45]} 11. Ne4 {[%clk
0:02:36]} 11... b6 {[%clk 0:02:41.6]} 12. c3 {[%clk 0:02:34.2]} 12... Be6 {[%clk
0:02:28.6]} 13. Bf4 {[%clk 0:02:16.1]} 13... Bd5 {[%clk 0:02:21.3]} 14. Qd2
{[%clk 0:02:13.5]} 14... c4 {[%clk 0:02:04]} 15. dxc4 {[%clk 0:01:56.8]} 15...
Bxe4 {[%clk 0:02:02.3]} 16. Rxe4 {[%clk 0:01:54.1]} 16... Qxd2 {[%clk
0:01:57.2]} 17. Bxd2 {[%clk 0:01:41]} 17... e6 {[%clk 0:01:57.4]} 18. g4 {[%clk
0:01:35]} 18... Ne7 {[%clk 0:01:56.7]} 19. Bg5 {[%clk 0:01:30]} 19... Rfe8
{[%clk 0:01:54.4]} 20. Rd1 {[%clk 0:01:26.5]} 20... c5 {[%clk 0:01:50.7]} 21.
Bf6 {[%clk 0:01:08.3]} 21... Nc6 {[%clk 0:01:42.8]} 22. Rd6 {[%clk 0:01:00]}
22... Rac8 {[%clk 0:01:41.7]} 23. Re2 {[%clk 0:00:50.8]} 23... Na5 {[%clk
0:01:31.5]} 24. b3 {[%clk 0:00:50.2]} 24... Nb7 {[%clk 0:01:31.7]} 25. Rd7
{[%clk 0:00:50.3]} 25... Rb8 {[%clk 0:01:24.5]} 26. Ng5 {[%clk 0:00:47.8]} 26...
Bxf6 {[%clk 0:01:03]} 27. exf6 {[%clk 0:00:48.7]} 27... Nd8 {[%clk 0:01:02.9]}
28. Red2 {[%clk 0:00:41.8]} 28... h6 {[%clk 0:01:01.2]} 29. Ne4 {[%clk
0:00:31.8]} 29... Nc6 {[%clk 0:01:00.9]} 30. Nd6 {[%clk 0:00:25.6]} 30... Rf8
{[%clk 0:01:01]} 31. Nb5 {[%clk 0:00:23.5]} 31... Ne5 {[%clk 0:00:52.8]} 32.
Nxa7 {[%clk 0:00:16.5]} 32... Nf3+ {[%clk 0:00:49.8]} 33. Kg2 {[%clk 0:00:16.2]}
33... Nxd2 {[%clk 0:00:50.7]} 34. Rxd2 {[%clk 0:00:16.6]} 34... Rfd8 {[%clk
0:00:50.6]} 35. Re2 {[%clk 0:00:14.5]} 35... g5 {[%clk 0:00:48.5]} 36. Nb5
{[%clk 0:00:14.4]} 36... Kh7 {[%clk 0:00:46.6]} 37. Na7 {[%clk 0:00:08.6]} 37...
Rb7 {[%clk 0:00:44.4]} 38. Nc6 {[%clk 0:00:08.4]} 38... Re8 {[%clk 0:00:41.2]}
39. Ne5 {[%clk 0:00:07.8]} 39... Rd8 {[%clk 0:00:37.1]} 40. Kg3 {[%clk
0:00:05.2]} 40... Rd1 {[%clk 0:00:35.8]} 41. f4 {[%clk 0:00:01.4]} 41... Rg1+
{[%clk 0:00:35.8]} 42. Kf2 {[%clk 0:00:01.5]} 42... gxf4 {[%clk 0:00:35.9]} 0-1

[Event "*** Titled Tuesday Blitz"]
[Site "Chess.com"]
[Date "2020.05.19"]
[Round "9"]
[White "promen1999"]
[Black "nihalsarin"]
[Result "0-1"]
[WhiteElo "2893"]
[BlackElo "3026"]
[TimeControl "180+1"]
[EndTime "13:46:37 PDT"]
[Termination "nihalsarin won by resignation"]

1. d4 {[%clk 0:03:00.9]} 1... Nf6 {[%clk 0:02:59.4]} 2. Nf3 {[%clk 0:03:01]}
2... d5 {[%clk 0:02:59.6]} 3. g3 {[%clk 0:02:59.4]} 3... Bf5 {[%clk 0:02:57.7]}
4. Bg2 {[%clk 0:02:57]} 4... e6 {[%clk 0:02:58.1]} 5. c4 {[%clk 0:02:57.2]} 5...
c6 {[%clk 0:02:58.2]} 6. Nc3 {[%clk 0:02:57.3]} 6... Nbd7 {[%clk 0:02:54.4]} 7.
Qb3 {[%clk 0:02:57.1]} 7... Qb6 {[%clk 0:02:52]} 8. c5 {[%clk 0:02:57.3]} 8...
Qc7 {[%clk 0:02:52.5]} 9. Bf4 {[%clk 0:02:53.3]} 9... Qc8 {[%clk 0:02:52.3]} 10.
h3 {[%clk 0:02:49.9]} 10... Be7 {[%clk 0:02:52.2]} 11. g4 {[%clk 0:02:49.4]}
11... Bg6 {[%clk 0:02:52.3]} 12. O-O {[%clk 0:02:36.1]} 12... O-O {[%clk
0:02:52.1]} 13. Rfe1 {[%clk 0:02:24.7]} 13... b6 {[%clk 0:02:31.6]} 14. cxb6
{[%clk 0:02:17.1]} 14... axb6 {[%clk 0:02:32.5]} 15. Nh4 {[%clk 0:02:00.2]}
15... Nxg4 {[%clk 0:02:26.3]} 16. Nxg6 {[%clk 0:01:52.4]} 16... fxg6 {[%clk
0:02:27.2]} 17. Bg3 {[%clk 0:01:48.4]} 17... Nh6 {[%clk 0:01:26]} 18. e4 {[%clk
0:01:48.1]} 18... Bf6 {[%clk 0:01:26.4]} 19. exd5 {[%clk 0:01:37.7]} 19... exd5
{[%clk 0:01:27.3]} 20. Re6 {[%clk 0:01:34.3]} 20... Kh8 {[%clk 0:01:21]} 21. Rc1
{[%clk 0:01:33.6]} 21... Bxd4 {[%clk 0:01:10.9]} 22. Qd1 {[%clk 0:00:47.8]}
22... Nf5 {[%clk 0:00:43]} 23. Bxd5 {[%clk 0:00:36.2]} 23... cxd5 {[%clk
0:00:33.4]} 24. Nb5 {[%clk 0:00:32.9]} 24... Bc5 {[%clk 0:00:19.2]} 25. Nd6
{[%clk 0:00:16.8]} 25... Qd8 {[%clk 0:00:07.6]} 26. Qxd5 {[%clk 0:00:11.7]}
26... Nxg3 {[%clk 0:00:06.6]} 27. Rxc5 {[%clk 0:00:06.6]} 27... Nxc5 {[%clk
0:00:06.2]} 28. Re8 {[%clk 0:00:06.2]} 28... Qxe8 {[%clk 0:00:05]} 29. Nxe8
{[%clk 0:00:06.4]} 29... Ne2+ {[%clk 0:00:05.9]} 30. Kf1 {[%clk 0:00:05.6]}
30... Raxe8 {[%clk 0:00:06.8]} 0-1

[Event "*** Titled Tuesday Blitz"]
[Site "Chess.com"]
[Date "2020.05.19"]
[Round "9"]
[White "esskeettit"]
[Black "PIwan"]
[Result "0-1"]
[WhiteElo "2326"]
[BlackElo "2505"]
[TimeControl "180+1"]
[EndTime "13:46:42 PDT"]
[Termination "PIwan won by resignation"]

1. d4 {[%clk 0:03:00.9]} 1... d5 {[%clk 0:02:58.8]} 2. c4 {[%clk 0:03:01.1]}
2... dxc4 {[%clk 0:02:59.7]} 3. e4 {[%clk 0:03:00.7]} 3... Nc6 {[%clk 0:02:57]}
4. Be3 {[%clk 0:02:53]} 4... Nf6 {[%clk 0:02:52.9]} 5. Nc3 {[%clk 0:02:52.5]}
5... e5 {[%clk 0:02:47.7]} 6. d5 {[%clk 0:02:34.4]} 6... Na5 {[%clk 0:02:47.3]}
7. Qa4+ {[%clk 0:02:31.2]} 7... Bd7 {[%clk 0:02:40.1]} 8. Qxa5 {[%clk
0:02:26.1]} 8... a6 {[%clk 0:02:40.4]} 9. b4 {[%clk 0:01:53]} 9... b6 {[%clk
0:02:12.2]} 10. Qa3 {[%clk 0:01:52.3]} 10... a5 {[%clk 0:02:12.3]} 11. Qc1
{[%clk 0:01:34.3]} 11... axb4 {[%clk 0:02:07.5]} 12. Bxc4 {[%clk 0:01:24.2]}
12... bxc3 {[%clk 0:02:04.8]} 13. Qxc3 {[%clk 0:01:23.9]} 13... Ra4 {[%clk
0:01:46.7]} 14. Qxe5+ {[%clk 0:01:22.7]} 14... Be7 {[%clk 0:01:45.5]} 15. Bb3
{[%clk 0:01:20.9]} 15... Rxe4 {[%clk 0:01:43.4]} 16. Qb2 {[%clk 0:01:13.2]}
16... Bb4+ {[%clk 0:01:38.2]} 17. Kf1 {[%clk 0:01:06.8]} 17... O-O {[%clk
0:01:27.5]} 18. Nf3 {[%clk 0:01:02.1]} 18... Nxd5 {[%clk 0:01:18.6]} 19. Bg5
{[%clk 0:00:39.3]} 19... Bb5+ {[%clk 0:01:10.1]} 20. Kg1 {[%clk 0:00:38.9]}
20... Qd6 {[%clk 0:00:44.7]} 21. Rd1 {[%clk 0:00:31.6]} 21... c6 {[%clk
0:00:36.5]} 22. Bxd5 {[%clk 0:00:23.7]} 22... cxd5 {[%clk 0:00:34.7]} 23. a3
{[%clk 0:00:23.8]} 23... Be2 {[%clk 0:00:27.9]} 24. Ra1 {[%clk 0:00:16.2]} 24...
Bc5 {[%clk 0:00:23]} 25. Nd2 {[%clk 0:00:13.5]} 25... Rg4 {[%clk 0:00:15.2]} 26.
Be3 {[%clk 0:00:12.2]} 26... d4 {[%clk 0:00:10.7]} 27. h3 {[%clk 0:00:04.9]}
27... dxe3 {[%clk 0:00:08.6]} 28. hxg4 {[%clk 0:00:05]} 28... exd2 {[%clk
0:00:07.6]} 29. Qc2 {[%clk 0:00:04.3]} 29... d1=Q+ {[%clk 0:00:07.4]} 30. Rxd1
{[%clk 0:00:03.2]} 30... Qxd1+ {[%clk 0:00:08.3]} 31. Qxd1 {[%clk 0:00:02.9]}
31... Bxd1 {[%clk 0:00:09.2]} 0-1

[Event "*** Titled Tuesday Blitz"]
[Site "Chess.com"]
[Date "2020.05.19"]
[Round "9"]
[White "Enriquack"]
[Black "mamonika"]
[Result "1-0"]
[WhiteElo "2305"]
[BlackElo "1993"]
[TimeControl "180+1"]
[EndTime "13:46:42 PDT"]
[Termination "Enriquack won by resignation"]

1. e4 {[%clk 0:03:00.9]} 1... c5 {[%clk 0:02:59.9]} 2. Nf3 {[%clk 0:03:00.9]}
2... e6 {[%clk 0:03:00.3]} 3. d4 {[%clk 0:03:01]} 3... cxd4 {[%clk 0:03:01.2]}
4. Nxd4 {[%clk 0:03:01.9]} 4... Nf6 {[%clk 0:03:01.6]} 5. Bd3 {[%clk 0:03:01.8]}
5... Nc6 {[%clk 0:02:58.6]} 6. Nxc6 {[%clk 0:03:01.8]} 6... bxc6 {[%clk
0:02:57.7]} 7. O-O {[%clk 0:03:01.2]} 7... e5 {[%clk 0:02:53.5]} 8. Nd2 {[%clk
0:02:51]} 8... Be7 {[%clk 0:02:34.9]} 9. c3 {[%clk 0:02:37.7]} 9... O-O {[%clk
0:02:31.3]} 10. Qc2 {[%clk 0:02:36.8]} 10... d5 {[%clk 0:02:27.4]} 11. Re1
{[%clk 0:02:32.1]} 11... Qc7 {[%clk 0:02:08.4]} 12. Nf3 {[%clk 0:02:25.6]} 12...
Bg4 {[%clk 0:02:00.4]} 13. Nd2 {[%clk 0:02:06.7]} 13... Rfe8 {[%clk 0:01:48.5]}
14. h3 {[%clk 0:02:06]} 14... Bh5 {[%clk 0:01:43.1]} 15. b3 {[%clk 0:02:02.3]}
15... Rad8 {[%clk 0:01:32.9]} 16. Bb2 {[%clk 0:02:01.6]} 16... Bg6 {[%clk
0:01:29.2]} 17. Rad1 {[%clk 0:02:00.6]} 17... Bc5 {[%clk 0:01:26]} 18. c4 {[%clk
0:01:45.6]} 18... d4 {[%clk 0:01:17.8]} 19. Nf1 {[%clk 0:01:43]} 19... a5 {[%clk
0:01:14.8]} 20. a3 {[%clk 0:01:39.8]} 20... Rb8 {[%clk 0:01:09.8]} 21. Rb1
{[%clk 0:01:33.5]} 21... Rb7 {[%clk 0:01:02]} 22. Bc1 {[%clk 0:01:32.4]} 22...
Reb8 {[%clk 0:00:59.2]} 23. Nd2 {[%clk 0:01:29.3]} 23... Ne8 {[%clk 0:00:42]}
24. g3 {[%clk 0:01:18.9]} 24... h5 {[%clk 0:00:40.5]} 25. h4 {[%clk 0:01:19.2]}
25... Qe7 {[%clk 0:00:38.5]} 26. Ra1 {[%clk 0:01:15.7]} 26... Nf6 {[%clk
0:00:32.2]} 27. Kg2 {[%clk 0:01:14.2]} 27... Ng4 {[%clk 0:00:31.4]} 28. Re2
{[%clk 0:01:06.2]} 28... Qf6 {[%clk 0:00:29.5]} 29. Qd1 {[%clk 0:01:01.3]} 29...
Qe6 {[%clk 0:00:22]} 30. Rb1 {[%clk 0:00:50.3]} 30... f5 {[%clk 0:00:21.8]} 31.
exf5 {[%clk 0:00:45]} 31... Bxf5 {[%clk 0:00:22.7]} 32. Qc2 {[%clk 0:00:43.5]}
32... Rf7 {[%clk 0:00:18.5]} 33. Ne4 {[%clk 0:00:41.7]} 33... Bxe4+ {[%clk
0:00:16.5]} 34. Bxe4 {[%clk 0:00:40.3]} 34... Rbf8 {[%clk 0:00:16.5]} 35. f3
{[%clk 0:00:38.4]} 35... Nf6 {[%clk 0:00:13.7]} 36. Bd3 {[%clk 0:00:36.9]} 36...
e4 {[%clk 0:00:10.5]} 37. Bxe4 {[%clk 0:00:35.7]} 37... Nxe4 {[%clk 0:00:08.2]}
38. Qxe4 {[%clk 0:00:28.9]} 38... Qf6 {[%clk 0:00:04.8]} 39. Bf4 {[%clk
0:00:25.3]} 39... Qxf4 {[%clk 0:00:02.5]} 40. gxf4 {[%clk 0:00:24.2]} 1-0

[Event "*** Titled Tuesday Blitz"]
[Site "Chess.com"]
[Date "2020.05.19"]
[Round "9"]
[White "1f3_2g41-0"]
[Black "Sergey85Rodchenkov"]
[Result "0-1"]
[WhiteElo "2326"]
[BlackElo "2518"]
[TimeControl "180+1"]
[EndTime "13:46:43 PDT"]
[Termination "Sergey85Rodchenkov won on time"]

1. e4 {[%clk 0:03:00.9]} 1... c5 {[%clk 0:02:59.6]} 2. Nf3 {[%clk 0:03:01.1]}
2... d6 {[%clk 0:02:59.9]} 3. d4 {[%clk 0:03:00.9]} 3... cxd4 {[%clk 0:02:59.5]}
4. Nxd4 {[%clk 0:03:01.8]} 4... Nf6 {[%clk 0:02:59.3]} 5. Nc3 {[%clk 0:03:00.8]}
5... a6 {[%clk 0:02:59.5]} 6. h3 {[%clk 0:03:01.2]} 6... e6 {[%clk 0:02:59.1]}
7. g4 {[%clk 0:03:01.2]} 7... d5 {[%clk 0:02:59.5]} 8. exd5 {[%clk 0:02:58.9]}
8... Nxd5 {[%clk 0:02:58.8]} 9. Nxd5 {[%clk 0:02:59.2]} 9... Qxd5 {[%clk
0:02:58]} 10. Rg1 {[%clk 0:02:59.8]} 10... Bc5 {[%clk 0:02:56]} 11. Be3 {[%clk
0:02:58.9]} 11... Qd6 {[%clk 0:02:39.7]} 12. Qd2 {[%clk 0:02:06.5]} 12... O-O
{[%clk 0:02:37.6]} 13. Bg2 {[%clk 0:02:05.1]} 13... e5 {[%clk 0:02:32.4]} 14.
Nb3 {[%clk 0:01:53.8]} 14... Qxd2+ {[%clk 0:02:31.7]} 15. Bxd2 {[%clk
0:01:44.8]} 15... Bb6 {[%clk 0:02:25.9]} 16. Bc3 {[%clk 0:01:35.6]} 16... Nc6
{[%clk 0:02:25.3]} 17. Rf1 {[%clk 0:01:22]} 17... f5 {[%clk 0:02:21.5]} 18. gxf5
{[%clk 0:00:57.5]} 18... Bxf5 {[%clk 0:02:20.3]} 19. O-O-O {[%clk 0:00:57.6]}
19... Rae8 {[%clk 0:02:14]} 20. Rd6 {[%clk 0:00:55.7]} 20... Bc7 {[%clk
0:02:06.4]} 21. Bxc6 {[%clk 0:00:33.9]} 21... Bxd6 {[%clk 0:02:03.3]} 22. Bxe8
{[%clk 0:00:33.9]} 22... Rxe8 {[%clk 0:02:03.9]} 23. Rd1 {[%clk 0:00:34]} 23...
Bf8 {[%clk 0:02:00.1]} 24. Na5 {[%clk 0:00:32.7]} 24... b6 {[%clk 0:01:53.1]}
25. Nc4 {[%clk 0:00:32.3]} 25... b5 {[%clk 0:01:51.1]} 26. Nxe5 {[%clk
0:00:30.5]} 26... Bxh3 {[%clk 0:01:48]} 27. f4 {[%clk 0:00:25.7]} 27... Bf5
{[%clk 0:01:45.1]} 28. Rg1 {[%clk 0:00:22.9]} 28... b4 {[%clk 0:01:41.7]} 29.
Bd4 {[%clk 0:00:22.3]} 29... Rd8 {[%clk 0:01:35.9]} 30. c3 {[%clk 0:00:19.1]}
30... bxc3 {[%clk 0:01:30.7]} 31. Bxc3 {[%clk 0:00:18.8]} 31... g6 {[%clk
0:01:26.1]} 32. Rd1 {[%clk 0:00:17.2]} 32... Rxd1+ {[%clk 0:01:24]} 33. Kxd1
{[%clk 0:00:18.1]} 33... h5 {[%clk 0:01:21.2]} 34. Ke2 {[%clk 0:00:18]} 34...
Bc5 {[%clk 0:01:19.6]} 35. Kf3 {[%clk 0:00:18.2]} 35... Kf8 {[%clk 0:01:15.7]}
36. a3 {[%clk 0:00:17.3]} 36... Ke7 {[%clk 0:01:13.5]} 37. Nc6+ {[%clk
0:00:16.4]} 37... Kd6 {[%clk 0:01:03.8]} 38. Ne5 {[%clk 0:00:15.8]} 38... Kd5
{[%clk 0:01:00.3]} 39. Nf7 {[%clk 0:00:09.2]} 39... Be7 {[%clk 0:00:53.1]} 40.
Ne5 {[%clk 0:00:07.7]} 40... h4 {[%clk 0:00:48.7]} 41. Nf7 {[%clk 0:00:04.3]}
41... Bc5 {[%clk 0:00:42.4]} 42. Nh6 {[%clk 0:00:04]} 42... Be6 {[%clk 0:00:39]}
43. Bf6 {[%clk 0:00:03.2]} 43... h3 {[%clk 0:00:37.4]} 44. Kg3 {[%clk
0:00:01.7]} 44... Be3 {[%clk 0:00:34.6]} 0-1

[Event "*** Titled Tuesday Blitz"]
[Site "Chess.com"]
[Date "2020.05.19"]
[Round "9"]
[White "fridaywins"]
[Black "FMOlexandrProhorov"]
[Result "0-1"]
[WhiteElo "2236"]
[BlackElo "2138"]
[TimeControl "180+1"]
[EndTime "13:46:44 PDT"]
[Termination "FMOlexandrProhorov won on time"]

1. e4 {[%clk 0:03:00.9]} 1... c5 {[%clk 0:02:59.5]} 2. Nf3 {[%clk 0:02:59.5]}
2... e6 {[%clk 0:02:59.6]} 3. d3 {[%clk 0:02:55.8]} 3... Nc6 {[%clk 0:02:57.7]}
4. Nbd2 {[%clk 0:02:56.7]} 4... Nf6 {[%clk 0:02:56.8]} 5. g3 {[%clk 0:02:57.6]}
5... g6 {[%clk 0:02:55.1]} 6. Bg2 {[%clk 0:02:57.7]} 6... Bg7 {[%clk 0:02:55.4]}
7. O-O {[%clk 0:02:58.6]} 7... O-O {[%clk 0:02:55.3]} 8. Re1 {[%clk 0:02:59.5]}
8... d5 {[%clk 0:02:53.6]} 9. e5 {[%clk 0:02:55.5]} 9... Nd7 {[%clk 0:02:54.1]}
10. Nb3 {[%clk 0:02:41.7]} 10... Ndxe5 {[%clk 0:02:44]} 11. Nxe5 {[%clk
0:02:41]} 11... Nxe5 {[%clk 0:02:43.9]} 12. Nxc5 {[%clk 0:02:39.5]} 12... b6
{[%clk 0:02:39.4]} 13. Nb3 {[%clk 0:02:38.2]} 13... Bb7 {[%clk 0:02:39.4]} 14.
d4 {[%clk 0:02:38]} 14... Nc4 {[%clk 0:02:37.2]} 15. c3 {[%clk 0:02:33.3]} 15...
a5 {[%clk 0:02:34.4]} 16. Nd2 {[%clk 0:02:30]} 16... Nd6 {[%clk 0:02:33.1]} 17.
Nf3 {[%clk 0:02:23.9]} 17... b5 {[%clk 0:02:28.9]} 18. Bg5 {[%clk 0:02:17.5]}
18... Qc7 {[%clk 0:02:24.1]} 19. Qc1 {[%clk 0:02:09.6]} 19... Rfe8 {[%clk
0:02:20.9]} 20. Bh6 {[%clk 0:02:09]} 20... Bh8 {[%clk 0:02:20.9]} 21. Qf4 {[%clk
0:01:57]} 21... Rac8 {[%clk 0:02:18]} 22. Bf1 {[%clk 0:01:48.5]} 22... Nc4
{[%clk 0:02:08]} 23. Qc1 {[%clk 0:01:00.5]} 23... Qb6 {[%clk 0:02:02.1]} 24. b3
{[%clk 0:00:52.1]} 24... Nd6 {[%clk 0:01:58.1]} 25. Qe3 {[%clk 0:00:37.9]} 25...
Ne4 {[%clk 0:01:50.3]} 26. Rac1 {[%clk 0:00:36.4]} 26... Ba6 {[%clk 0:01:41.1]}
27. Ng5 {[%clk 0:00:30.6]} 27... Nd6 {[%clk 0:01:33.8]} 28. Nf3 {[%clk
0:00:25.2]} 28... Ne4 {[%clk 0:01:30.6]} 29. h4 {[%clk 0:00:24.4]} 29... b4
{[%clk 0:01:29.2]} 30. c4 {[%clk 0:00:21]} 30... Bb7 {[%clk 0:01:18]} 31. c5
{[%clk 0:00:20.4]} 31... Qc7 {[%clk 0:01:15.9]} 32. Bd3 {[%clk 0:00:20.3]} 32...
Nc3 {[%clk 0:01:11.4]} 33. Rc2 {[%clk 0:00:19.6]} 33... a4 {[%clk 0:01:11.2]}
34. bxa4 {[%clk 0:00:18.8]} 34... Bc6 {[%clk 0:01:07.8]} 35. h5 {[%clk
0:00:18.7]} 35... Bxa4 {[%clk 0:01:06.6]} 36. Rd2 {[%clk 0:00:18.3]} 36... Bc6
{[%clk 0:00:54.6]} 37. hxg6 {[%clk 0:00:17.7]} 37... hxg6 {[%clk 0:00:54.3]} 38.
Qg5 {[%clk 0:00:17.9]} 38... Ne4 {[%clk 0:00:49.4]} 39. Bxe4 {[%clk 0:00:14.6]}
39... dxe4 {[%clk 0:00:49.4]} 40. Nh4 {[%clk 0:00:08.8]} 40... Kh7 {[%clk
0:00:46.8]} 41. Qe3 {[%clk 0:00:07]} 41... Bf6 {[%clk 0:00:43.4]} 42. Bg5 {[%clk
0:00:05.8]} 42... Bg7 {[%clk 0:00:42.5]} 43. Ng2 {[%clk 0:00:05.2]} 43... Ra8
{[%clk 0:00:42.1]} 44. Nf4 {[%clk 0:00:05.2]} 44... Ra3 {[%clk 0:00:42]} 45. Qe2
{[%clk 0:00:02.5]} 45... e3 {[%clk 0:00:41.4]} 0-1

[Event "*** Titled Tuesday Blitz"]
[Site "Chess.com"]
[Date "2020.05.19"]
[Round "9"]
[White "GjakanTati"]
[Black "TenisMaster"]
[Result "0-1"]
[WhiteElo "2640"]
[BlackElo "2798"]
[TimeControl "180+1"]
[EndTime "13:46:46 PDT"]
[Termination "TenisMaster won by resignation"]

1. d4 {[%clk 0:03:00.9]} 1... Nf6 {[%clk 0:02:59.3]} 2. c4 {[%clk 0:03:00.5]}
2... e6 {[%clk 0:02:59.3]} 3. Nf3 {[%clk 0:02:59.8]} 3... d5 {[%clk 0:02:59.1]}
4. Nc3 {[%clk 0:02:59.5]} 4... c6 {[%clk 0:02:58.7]} 5. Bg5 {[%clk 0:02:56.3]}
5... h6 {[%clk 0:02:57.9]} 6. Bxf6 {[%clk 0:02:54.2]} 6... Qxf6 {[%clk
0:02:58.8]} 7. e3 {[%clk 0:02:51.7]} 7... Nd7 {[%clk 0:02:58.3]} 8. Qc2 {[%clk
0:02:50.9]} 8... g6 {[%clk 0:02:55.3]} 9. Bd3 {[%clk 0:02:49.9]} 9... Bg7 {[%clk
0:02:54.4]} 10. O-O {[%clk 0:02:48.9]} 10... dxc4 {[%clk 0:02:51.7]} 11. Bxc4
{[%clk 0:02:47.8]} 11... O-O {[%clk 0:02:51.5]} 12. e4 {[%clk 0:02:41.2]} 12...
e5 {[%clk 0:02:51.2]} 13. dxe5 {[%clk 0:02:27.9]} 13... Nxe5 {[%clk 0:02:52.1]}
14. Nxe5 {[%clk 0:02:27.3]} 14... Qxe5 {[%clk 0:02:53]} 15. Kh1 {[%clk
0:02:19.6]} 15... b5 {[%clk 0:02:32.3]} 16. Bb3 {[%clk 0:02:18.7]} 16... a5
{[%clk 0:02:30.1]} 17. a3 {[%clk 0:02:13.6]} 17... Qc5 {[%clk 0:02:23.5]} 18. e5
{[%clk 0:02:07.4]} 18... Bf5 {[%clk 0:02:16.5]} 19. Qe2 {[%clk 0:01:41.5]} 19...
Qxe5 {[%clk 0:02:14.2]} 20. Qf3 {[%clk 0:01:41.7]} 20... b4 {[%clk 0:01:51.8]}
21. axb4 {[%clk 0:01:40.9]} 21... axb4 {[%clk 0:01:50.5]} 22. Na4 {[%clk
0:01:22.4]} 22... Be4 {[%clk 0:01:40.2]} 23. Qe3 {[%clk 0:01:18.7]} 23... Rae8
{[%clk 0:01:38.2]} 24. Rad1 {[%clk 0:01:13.3]} 24... Qf5 {[%clk 0:01:13]} 25.
Qb6 {[%clk 0:00:56.5]} 25... Bxg2+ {[%clk 0:00:50.5]} 26. Kxg2 {[%clk
0:00:54.4]} 26... Qg4+ {[%clk 0:00:50.2]} 27. Kh1 {[%clk 0:00:53.2]} 27... Qf3+
{[%clk 0:00:49]} 28. Kg1 {[%clk 0:00:53.1]} 28... Re4 {[%clk 0:00:45.8]} 29. h3
{[%clk 0:00:38.6]} 29... Qxh3 {[%clk 0:00:31.2]} 30. f4 {[%clk 0:00:24.7]} 30...
Qg3+ {[%clk 0:00:30.1]} 31. Kh1 {[%clk 0:00:23.5]} 31... Qh3+ {[%clk 0:00:29.9]}
32. Kg1 {[%clk 0:00:23.4]} 32... Qxb3 {[%clk 0:00:30.4]} 33. Qxc6 {[%clk
0:00:22]} 33... Qg3+ {[%clk 0:00:26.3]} 34. Kh1 {[%clk 0:00:21.3]} 34... Qh3+
{[%clk 0:00:24.1]} 35. Kg1 {[%clk 0:00:20.9]} 35... Bd4+ {[%clk 0:00:24]} 36.
Rxd4 {[%clk 0:00:18.5]} 36... Qg3+ {[%clk 0:00:20.5]} 37. Kh1 {[%clk 0:00:18.2]}
37... Rxd4 {[%clk 0:00:21.1]} 38. Qc2 {[%clk 0:00:15.6]} 38... Rxf4 {[%clk
0:00:19.9]} 39. Rxf4 {[%clk 0:00:13.9]} 39... Qxf4 {[%clk 0:00:20.8]} 0-1

[Event "*** Titled Tuesday Blitz"]
[Site "Chess.com"]
[Date "2020.05.19"]
[Round "9"]
[White "mbojan"]
[Black "heartofatiger"]
[Result "1-0"]
[WhiteElo "2625"]
[BlackElo "2469"]
[TimeControl "180+1"]
[EndTime "13:46:47 PDT"]
[Termination "mbojan won on time"]

1. e4 {[%clk 0:03:00.9]} 1... Nf6 {[%clk 0:02:59.1]} 2. e5 {[%clk 0:03:00.7]}
2... Nd5 {[%clk 0:02:59.7]} 3. d4 {[%clk 0:03:00.5]} 3... d6 {[%clk 0:03:00.2]}
4. Nf3 {[%clk 0:02:56.2]} 4... g6 {[%clk 0:02:57.6]} 5. Bc4 {[%clk 0:02:55.1]}
5... Nb6 {[%clk 0:02:57.2]} 6. Bb3 {[%clk 0:02:55.4]} 6... Bg7 {[%clk
0:02:57.9]} 7. exd6 {[%clk 0:02:53.3]} 7... cxd6 {[%clk 0:02:57.4]} 8. O-O
{[%clk 0:02:53.9]} 8... O-O {[%clk 0:02:57.4]} 9. Re1 {[%clk 0:02:54]} 9... Nc6
{[%clk 0:02:56.7]} 10. c3 {[%clk 0:02:51.7]} 10... Qc7 {[%clk 0:02:53.6]} 11.
Bf4 {[%clk 0:02:37.5]} 11... e5 {[%clk 0:02:49.8]} 12. Bg3 {[%clk 0:02:36.1]}
12... Kh8 {[%clk 0:02:47.3]} 13. Nbd2 {[%clk 0:02:31]} 13... f5 {[%clk
0:02:46.9]} 14. dxe5 {[%clk 0:02:31]} 14... dxe5 {[%clk 0:02:46.2]} 15. Qe2
{[%clk 0:02:30.7]} 15... f4 {[%clk 0:02:35.1]} 16. Bh4 {[%clk 0:02:30.8]} 16...
h6 {[%clk 0:02:34.8]} 17. Ne4 {[%clk 0:02:30.6]} 17... Bf5 {[%clk 0:02:29.1]}
18. Rad1 {[%clk 0:02:28.6]} 18... Rae8 {[%clk 0:02:27.5]} 19. Nd6 {[%clk
0:02:26.8]} 19... e4 {[%clk 0:02:00.3]} 20. Nxe8 {[%clk 0:02:10.1]} 20... Rxe8
{[%clk 0:02:00]} 21. Nd4 {[%clk 0:02:09.9]} 21... Nxd4 {[%clk 0:01:40.8]} 22.
cxd4 {[%clk 0:02:10.8]} 22... Qd7 {[%clk 0:01:34.5]} 23. h3 {[%clk 0:01:45.5]}
23... Nc8 {[%clk 0:01:33.4]} 24. Rc1 {[%clk 0:01:35.9]} 24... Nd6 {[%clk
0:01:32.7]} 25. Rc5 {[%clk 0:01:30.5]} 25... f3 {[%clk 0:01:18.9]} 26. Qd2
{[%clk 0:01:13]} 26... fxg2 {[%clk 0:01:09.7]} 27. Bg3 {[%clk 0:01:13.1]} 27...
e3 {[%clk 0:00:58]} 28. Rxe3 {[%clk 0:01:04.7]} 28... Ne4 {[%clk 0:00:58.3]} 29.
Qe1 {[%clk 0:00:59.3]} 29... Bxd4 {[%clk 0:00:45.2]} 30. Rd5 {[%clk 0:00:57.3]}
30... Qg7 {[%clk 0:00:35.5]} 31. Rxd4 {[%clk 0:00:32.4]} 31... Qxd4 {[%clk
0:00:34.1]} 32. Bc2 {[%clk 0:00:32.6]} 32... Kh7 {[%clk 0:00:28.5]} 33. Bh2
{[%clk 0:00:24.1]} 33... Nxf2 {[%clk 0:00:20]} 34. Re7+ {[%clk 0:00:21.5]} 34...
Rxe7 {[%clk 0:00:16.9]} 35. Qxe7+ {[%clk 0:00:22.4]} 35... Qg7 {[%clk
0:00:12.5]} 36. Qxg7+ {[%clk 0:00:22.4]} 36... Kxg7 {[%clk 0:00:12.8]} 37. Bxf5
{[%clk 0:00:23.1]} 37... Nxh3+ {[%clk 0:00:07.6]} 38. Bxh3 {[%clk 0:00:22.7]}
1-0